[Event "WR Chess Masters 2023"]
[Site "Duesseldorf"]
[Date "2023.02.23"]
[Round "7.5"]
[White "Abdusattorov, Nodirbek"]
[Black "Duda, Jan-Krzysztof"]
[Result "1/2-1/2"]
[ECO "C43"]
[WhiteElo "2734"]
[BlackElo "2729"]
[Annotator "TA"]
[PlyCount "97"]
[EventDate "2023.02.16"]
[EventCountry "GER"]
[SourceTitle "playchess.com"]
[Source "ChessBase"]
[SourceQuality "1"]
[TimeControl "40/7200:20/3600:900+30"]

{[%evp 9,97,0,0,0,0,0,0,0,0,0,0,0,15,0,8,0,0,0,0,0,16,10,39,37,37,35,31,38,39,38,45,33,39,10,18,17,16,14,29,30,29,32,40,29,29,37,37,17,22,5,7,0,0,0,0,0,0,0,0,0,0,0,9,9,9,9,9,9,9,8,8,8,15,8,8,8,15,8,16,16,16,16,16,16,16,16,20,20,20,20]} 1. e4 {[%emt 0:00:48]} e5 {[%emt 0:00:05]} 2. Nf3 {[%emt 0:00:16]} Nf6 {[%emt 0:00:07][%cal Bg8f6,Bf6e4,Be4f2][%mdl 32]} 3. d4 {[%emt 0:00:20]} Nxe4 {[%emt 0:00:07]} 4. dxe5 {[%emt 0:00:14]} Bc5 {[%emt 0:01:20]} 5. Bc4 {[%emt 0:00:25]} Nxf2 {[%emt 0:00:45]} (5... Bxf2+ 6. Kf1 d5 7. Qxd5 Qxd5 8. Bxd5 $16) 6. Bxf7+ {[%emt 0:00:17][%mdl 64] Decoy. C43: Petroff Defence: 3 d4.} Kxf7 {[%emt 0:00:06]} 7. Qd5+ {[%emt 0:00:10]} Kg6 {[%emt 0:00:19]} 8. Qxc5 {[%emt 0:00:21]} (8. Rf1 d6 9. Rxf2 Bxf2+ 10. Kxf2 h6 $15) 8... Nxh1 {[%emt 0:00:06]} 9. Nc3 {[%emt 0:00:41][%cal Bb1c3,Bc3d5,Bd5c7][%mdl 32]} h6 {[%emt 0:04:35]} (9... d5 10. Nxd5 h6 11. Qc4 $16) 10. Qc4 {[%emt 0:00:08]} d6 {[%emt 0:24:48]} 11. Nd5 {[%emt 0:23:00][%mdl 1024] aiming for e6. White has compensation.} Nc6 {[%emt 0:12:03] [#]} 12. e6 {[%emt 0:01:04] White threatens Qe4+ and mate.} Kh7 {[%emt 0:00:28]} ({Much less strong is} 12... Bxe6 13. Nf4+ Kh7 14. Qe4+ $16 (14. Qxe6 $2 Re8 $19) (14. Qxe6 $2 Re8 $19)) 13. Qe4+ {[%emt 0:00:15]} Kg8 {[%emt 0:00:39] And now ...Ne7 would win.} 14. e7 {[%emt 0:00:31]} Qe8 {[%emt 0:00:32] Hoping for ...Rb8.} 15. Be3 {[%emt 0:03:23] [#]} Bd7 $146 {[%emt 0:06:53] Threatens to win with ...Qf7.} (15... Nxe7 $5 16. Qxe7 (16. Nxe7+ Kf7 $11) 16... Bf5 17. Qxe8+ (17. Qxc7 Qe4 $11) 17... Rxe8 $11) ({Predecessor:} 15... Nxe7 16. Qxe7 Bd7 17. Qxe8+ Rxe8 18. Kd2 Bc6 19. Nb4 Be4 20. Rxh1 Kh7 21. h4 Rhf8 22. Rf1 a5 {½-½ Orlov,V (2117)-Nepomuk,H (1979) WC-2017-P-00007 2013}) 16. Nxc7 {[%emt 0:02:09]} Qxe7 {[%emt 0:00:51]} 17. Qxe7 {[%emt 0:00:13]} Nxe7 {[%emt 0:00:06]} 18. Nxa8 {[%emt 0:00:06]} Kf7 {[%emt 0:04:07]} 19. Nc7 {[%emt 0:00:49]} Rc8 {[%emt 0:02:43] [#]} 20. Bxa7 $1 {[%emt 0:00:24]} Rxc7 {[%emt 0:03:44]} 21. Kd2 {[%emt 0:03:40]} (21. O-O-O $5) 21... Rc4 {[%emt 0:21:53][%cal Oc4g4]} 22. Rxh1 {[%emt 0:21:56]} Ra4 {[%emt 0:00:09][%csl LRa2,LRa7]} 23. Bb8 {[%emt 0:03:58]} Bc6 {[%emt 0:00:12]} 24. Bxd6 {[%emt 0:02:25] Black must now prevent Ne5+.} Bxf3 {[%emt 0:00:09]} ({Weaker is} 24... Rxa2 25. Ba3 $18) 25. Bxe7 {[%emt 0:00:04][%cal Oh1f1] Rf1! is the strong threat.} Bxg2 $11 {[%emt 0:00:10][%mdl 4096] Endgame KRB-KRB} 26. Rg1 {[%emt 0:04:14]} Bd5 {[%emt 0:01:05]} 27. Bc5 {[%emt 0:01:54]} Rxa2 {[%emt 0:00:37]} 28. Ba3 {[%emt 0:00:40]} g5 {[%emt 0:00:09] The position is equal.} 29. Ke3 {[%emt 0:04:41]} b5 {[%emt 0:02:20]} 30. c3 {[%emt 0:00:13]} Ke6 {[%emt 0:03:29]} 31. Kf2 {[%emt 0:10:42]} Kf5 {[%emt 0:02:49]} 32. Kg3 {[%emt 0:00:07]} Bc4 {[%emt 0:00:50]} 33. Re1 {[%emt 0:00:29]} Bd3 {[%emt 0:01:50]} 34. h4 {[%emt 0:05:10]} Kg6 {[%emt 0:03:18]} 35. Rh1 {[%emt 0:02:58]} Kh5 {[%emt 0:01:10]} 36. hxg5+ {[%emt 0:00:55]} Kxg5 {[%emt 0:00:06]} 37. Kf3 {[%emt 0:00:51]} h5 {[%emt 0:00:48]} 38. Rd1 {[%emt 0:01:51]} Bc4 {[%emt 0:00:17]} 39. Rg1+ {[%emt 0:03:29]} Kf5 {[%emt 0:00:10]} 40. Kg3 {[%emt 0:00:00]} Ke4 {[%emt 0:00:00]} 41. Rd1 {[%emt 0:02:48]} Ke3 {[%emt 0:02:19]} 42. Rh1 {[%emt 0:00:46]} Kd3 {[%emt 0:01:12]} 43. Kh4 {[%emt 0:00:48]} Rxa3 {[%emt 0:02:56][%mdl 64] Deflection. KRB-KR} 44. Rh3+ {[%emt 0:00:53]} Kc2 {[%emt 0:00:05]} 45. bxa3 {[%emt 0:00:05]} Kb2 {[%emt 0:00:08]} 46. Kg5 {[%emt 0:00:08]} Kxa3 {[%emt 0:00:07]} 47. Kf4 {[%emt 0:00:06]} b4 {[%emt 0:00:08]} 48. cxb4+ {[%emt 0:00:06]} Kxb4 {[%emt 0:00:04]} 49. Rxh5 {[%emt 0:00:04] An exciting game.   Weighted Error Value: White=0.03 (flawless) /Black=0.04 (flawless)} 1/2-1/2

[Event "WR Chess Masters 2023"]
[Site "Duesseldorf"]
[Date "2023.02.24"]
[Round "8.1"]
[White "Esipenko, Andrey"]
[Black "Aronian, Levon"]
[Result "1/2-1/2"]
[ECO "E04"]
[WhiteElo "2675"]
[BlackElo "2736"]
[Annotator "TA"]
[PlyCount "72"]
[EventDate "2023.02.16"]
[EventCountry "GER"]
[SourceTitle "playchess.com"]
[Source "ChessBase"]
[SourceQuality "1"]
[TimeControl "40/7200:20/3600:900+30"]

{[%evp 24,72,11,16,14,13,21,14,14,23,20,22,14,15,38,0,16,10,7,19,0,0,224,214,205,211,229,234,234,230,225,233,222,225,212,203,204,0,202,0,211,188,205,194,210,130,133,77,71,69,69]} 1. d4 {[%emt 0:00:07]} Nf6 {[%emt 0:00:06]} 2. c4 {[%emt 0:00:07]} e6 {[%emt 0:00:05]} 3. Nf3 {[%emt 0:00:21]} d5 {[%emt 0:00:06]} 4. g3 {[%emt 0:00:13]} dxc4 {[%emt 0:00:06]} 5. Bg2 {[%emt 0:00:11]} c5 {[%emt 0:00:05]} 6. O-O {[%emt 0:00:18]} Nc6 {[%emt 0:00:05]} 7. Ne5 {[%emt 0:00:15]} Bd7 {[%emt 0:00:15]} 8. Nxc4 {[%emt 0:00:07]} cxd4 {[%emt 0:00:10]} 9. Bf4 {[%emt 0:00:16][%cal Bc1f4,Bf4d6,Bd6a3][%mdl 32]} Nd5 {[%emt 0:00:43]} 10. Nd6+ {[%emt 0:00:20]} Bxd6 {[%emt 0:00:06]} 11. Bxd6 {[%emt 0:00:04]} Nde7 {[%emt 0:00:09]} 12. Nd2 {[%emt 0:00:23]} O-O {[%emt 0:00:33]} 13. Qb3 {[%emt 0:00:55][%mdl 1024] White has compensation.} Bc8 {[%emt 0:00:47] E04: Open Catalan: 5 Nf3.} 14. Nc4 {[%emt 0:03:30]} e5 {[%emt 0:00:15]} 15. Rac1 {[%emt 0:01:42]} (15. Bxe5 Be6 16. Bd6 Bxc4 17. Bxe7 Bxb3 $15) 15... Re8 {[%emt 0:01:44] The position is equal.} 16. Ba3 {[%emt 0:01:00] Nd6 would be deadly. A strong pair of Bishops.} (16. Bxe5 Be6 17. Qxb7 Bxc4 $15) 16... Nf5 {[%emt 0:04:31] [#] Dodges Nd6} 17. e4 $146 {[%emt 0:00:48]} ({Predecessor:} 17. Be4 Qc7 18. Qf3 g6 19. g4 Ng7 20. Nd6 Re6 21. Bxc6 bxc6 22. Qxc6 Qxc6 23. Rxc6 {1-0 Gelfand,B (2668)-Anand,V (2756) Leon 35th rapid 2022 (2.3)}) 17... dxe3 {[%emt 0:00:59]} 18. fxe3 {[%emt 0:00:10]} h5 {[%emt 0:02:05]} 19. Rxf5 {[%emt 0:01:23][%mdl 64] Decoy} Bxf5 {[%emt 0:00:10]} 20. Nd6 {[%emt 0:00:07][%mdl 64] Discovered Attack, Double Attack} Be6 {[%emt 0:08:34]} 21. Qxb7 {[%emt 0:00:37]} Qg5 $1 {[%emt 0:00:07]} 22. Rc3 {[%emt 0:00:25][%cal Od6e8]} (22. Bxc6 $2 Qxe3+ 23. Kf1 Qxc1+ $19) 22... Nd4 $2 {[%emt 0:07:45]} 23. exd4 $18 {[%emt 0:49:38]} exd4 {[%emt 0:00:25]} 24. Rd3 {[%emt 0:26:55]} (24. Nxe8 Rxe8 25. h4 (25. Qc6 dxc3 26. Qxe8+ Kh7 $11) 25... Qe5 $16) 24... Red8 {[%emt 0:33:56]} 25. h4 {[%emt 0:03:44]} (25. Qxa8 $2 Rxa8 26. Kf2 (26. Bxa8 Qc1+ 27. Kf2 Qc2+ {[%mdl 64] Skewer, Double Attack} 28. Ke1 Qxd3 29. h4 Qe3+ 30. Kf1 Bh3+ 31. Bg2 d3 32. Bxh3 d2 33. Kg2 Qe2+ 34. Kh1 d1=Q+) 26... Qf6+ 27. Bf3 Rd8 $19) 25... Qg6 {[%emt 0:11:45]} 26. Qe4 {[%emt 0:02:22]} (26. Rxd4 Qxg3 27. Qf3 Qxf3 28. Bxf3 Rab8 $16) 26... Qxe4 {[%emt 0:00:11]} 27. Bxe4 {[%emt 0:00:08]} (27. Nxe4 $6 Rac8 $16) 27... Rab8 {[%emt 0:00:03]} 28. b3 {[%emt 0:04:33]} (28. Rxd4 $6 Bxa2 29. Ra4 Rd7 $16) 28... Rb6 {[%emt 0:00:39]} 29. Nb7 {[%emt 0:04:41]} (29. Rxd4 $6 Ra6 30. Bc5 Rxa2 $16) 29... Re8 {[%emt 0:03:06]} 30. Nd6 {[%emt 0:01:07]} ({Much less strong is} 30. Rxd4 $6 Ra6 $16) 30... Rd8 {[%emt 0:00:27]} 31. Nb7 {[%emt 0:05:26]} ({Don't take} 31. Rxd4 $6 Ra6 32. Bc5 Rxa2 $16) 31... Re8 {[%emt 0:00:10] [#]} 32. Nc5 $1 {[%emt 0:00:46]} ({Don't do} 32. Rxd4 $6 Ra6 $16) 32... Bh3 {[%emt 0:05:19]} 33. Rxd4 {[%emt 0:00:51]} Rf6 {[%emt 0:00:16]} 34. Rd1 {[%emt 0:00:49] Dodges Rf1+. Bb2 is the strong threat.} Bf5 {[%emt 0:00:46]} 35. Bxf5 {[%emt 0:01:29]} (35. Bb7 $142) 35... Rxf5 $16 {[%emt 0:00:04] [#]} 36. Rd2 $1 {[%emt 0:00:23]} Re3 {[%emt 0:05:57] An exciting game.   Weighted Error Value: White=0.22 (precise) /Black=0.10 (very precise)} 1/2-1/2

[Event "WR Chess Masters 2023"]
[Site "Duesseldorf"]
[Date "2023.02.24"]
[Round "8.2"]
[White "Gukesh D"]
[Black "Duda, Jan-Krzysztof"]
[Result "1/2-1/2"]
[ECO "C42"]
[WhiteElo "2718"]
[BlackElo "2729"]
[Annotator "TA"]
[PlyCount "71"]
[EventDate "2023.02.16"]
[EventCountry "GER"]
[SourceTitle "playchess.com"]
[Source "ChessBase"]
[SourceQuality "1"]
[TimeControl "40/7200:20/3600:900+30"]

{[%evp 15,71,28,37,45,37,24,30,21,29,8,21,13,13,22,18,24,25,19,39,39,44,35,41,43,53,24,48,-27,-4,-13,-12,-14,0,0,0,0,0,0,0,0,0,0,0,0,0,0,0,0,0,0,0,0,0,0,16,11,22,23]} 1. e4 {[%emt 0:00:09]} e5 {[%emt 0:00:06]} 2. Nf3 {[%emt 0:00:11]} Nf6 {[%emt 0:00:06]} 3. Nxe5 {[%emt 0:00:08]} d6 {[%emt 0:00:05]} 4. Nf3 {[%emt 0:00:09]} Nxe4 {[%emt 0:00:05]} 5. Nc3 {[%emt 0:00:07]} Nxc3 {[%emt 0:00:06]} 6. dxc3 {[%emt 0:00:05]} Be7 {[%emt 0:00:08]} 7. Be3 {[%emt 0:00:05]} Nc6 {[%emt 0:01:18]} 8. Qd2 {[%emt 0:00:15]} Be6 {[%emt 0:00:18]} 9. O-O-O {[%emt 0:01:01] C42: Petroff Defence: 3 Nxe5 and unusual White 3rd moves.} Qd7 {[%emt 0:00:08]} (9... Bxa2 $2 10. b3 $18) 10. Kb1 {[%emt 0:02:04]} a6 {[%emt 0:01:24]} 11. h3 {[%emt 0:00:59] White has an edge. 11.Ng5 is the modern continuation.} Bf6 {[%emt 0:05:18]} 12. g4 {[%emt 0:07:03][%cal Bg2g4,Bg4g5][%mdl 32]} h6 {[%emt 0:02:03]} 13. Bg2 {[%emt 0:03:11]} O-O-O {[%emt 0:00:22]} 14. b3 {[%emt 0:06:14]} Kb8 {[%emt 0:04:57]} 15. Ng1 {[%emt 0:01:33]} d5 {[%emt 0:35:00]} 16. Ne2 {[%emt 0:01:24] [#]} h5 $146 {[%emt 0:02:26]} ({Predecessor:} 16... Qe7 17. Rhe1 g6 18. Kb2 h5 19. g5 Bg7 20. h4 Qb4 21. Nd4 Nxd4 22. Bxd4 Bxd4 23. Qxd4 Qxd4 24. Rxd4 {½-½ Mendl,M (2522)-Goncharenko,G (2501) GER AM01 email 2015}) 17. g5 {[%emt 0:02:58]} Be5 {[%emt 0:00:42]} 18. Nf4 {[%emt 0:33:00]} Bxf4 {[%emt 0:03:18]} 19. Bxf4 {[%emt 0:00:02]} h4 {[%emt 0:00:11]} 20. c4 {[%emt 0:03:04]} d4 {[%emt 0:07:03][%cal Bd5d4,Bd4d3][%mdl 32]} 21. Qd3 {[%emt 0:13:39]} (21. Bxc6 $14 Qxc6 22. Be5) 21... Bf5 {[%emt 0:11:27]} 22. Bxc6 {[%emt 0:04:53] The position is equal.} bxc6 {[%emt 0:00:07]} 23. Qd2 {[%emt 0:00:03] [#] And now Qb4+ would win.} d3 {[%emt 0:13:14]} 24. Qb4+ {[%emt 0:04:44]} Ka8 {[%emt 0:00:30]} 25. c3 {[%emt 0:02:56]} (25. cxd3 Bxd3+ 26. Kb2 Qd4+ 27. Qc3 Qxf4 $17) 25... g6 {[%emt 0:03:28]} (25... Bxh3 26. Qa5 Bg2 27. Bxc7 $16 (27. Qxa6+ Kb8 $14)) 26. Qc5 {[%emt 0:07:11] Strongly threatening Be3.} Kb7 {[%emt 0:00:58]} (26... Bxh3 $2 27. Be3 $18) (26... d2+ 27. Kb2 Qc8 28. Rxd2 $16 (28. Qxc6+ Qb7 $16) (28. Bxd2 Kb7 $16)) 27. Qb4+ {[%emt 0:00:05]} (27. Be3 Ra8 $15) 27... Kc8 {[%emt 0:02:44]} 28. Qa5 {[%emt 0:00:11]} Kb7 {[%emt 0:00:05]} (28... Bxh3 $2 29. Qxa6+ Kb8 30. Qb6+ Ka8 31. Bxc7 $18 (31. Qxc7 Bg2 $11)) ({Resist} 28... d2+ 29. Ka1 Kb7 30. Qb4+ (30. Bxd2 Bc2 $11) (30. Rxd2 Qe7 $16) 30... Ka8 31. Rxd2 $16) 29. Kb2 {[%emt 0:00:20]} Rhe8 {[%emt 0:01:05]} 30. Rhe1 {[%emt 0:00:28]} c5 {[%emt 0:04:08]} 31. Qxc5 {[%emt 0:04:00]} Qc6 {[%emt 0:00:33]} 32. Qb4+ {[%emt 0:03:02]} Qb6 {[%emt 0:04:11]} 33. Rxe8 {[%emt 0:04:10]} Rxe8 {[%emt 0:00:08]} 34. Be3 {[%emt 0:00:46][%mdl 64] [#] Pin. The board is on fire.} Qxb4 {[%emt 0:03:23]} (34... a5 $5 {[%cal Ra5b4]} 35. Qa3 (35. Qa4 Rxe3 36. fxe3 Qxe3 $11) 35... Rxe3 36. fxe3 Qxe3 37. Qxa5 Qe2+ 38. Ka3 Qxd1 39. Qb5+ Kc8 40. Qe8+ Kb7 41. Qb5+ Ka7 42. Qc5+ Kb8 43. Qb5+ Kc8 44. Qe8+ Kb7 45. Qb5+ $11) 35. cxb4 {[%emt 0:00:01]} Bxh3 {[%emt 0:02:26] ...Bg4 is the strong threat.} 36. Rh1 {[%emt 0:00:06] Weighted Error Value: White=0.06 (flawless) /Black=0.05 (flawless)} 1/2-1/2

[Event "WR Chess Masters 2023"]
[Site "Duesseldorf"]
[Date "2023.02.24"]
[Round "8.3"]
[White "Nepomniachtchi, Ian"]
[Black "Praggnanandhaa R"]
[Result "1/2-1/2"]
[ECO "C54"]
[WhiteElo "2793"]
[BlackElo "2690"]
[Annotator "TA"]
[PlyCount "92"]
[EventDate "2023.02.16"]
[EventCountry "GER"]
[SourceTitle "playchess.com"]
[Source "ChessBase"]
[SourceQuality "1"]
[TimeControl "40/7200:20/3600:900+30"]

{[%evp 11,92,7,23,20,24,24,27,17,31,18,29,0,8,2,10,13,15,5,14,-27,0,0,0,-16,0,-22,-34,-41,-40,-29,-20,-42,-11,0,0,-19,15,17,18,18,13,0,0,0,0,0,0,-20,-26,-19,0,0,0,0,0,0,0,0,0,0,4,0,19,20,19,22,29,29,68,0,0,0,0,0,0,0,0,0,0,0,0,0,0]} 1. e4 {[%emt 0:00:11]} e5 {[%emt 0:00:36]} 2. Nf3 {[%emt 0:00:12]} Nc6 {[%emt 0:00:04]} 3. Bc4 {[%emt 0:00:06]} Bc5 {[%emt 0:00:06]} 4. c3 {[%emt 0:00:25]} Nf6 {[%emt 0:00:06]} 5. d3 {[%emt 0:00:06]} d6 {[%emt 0:00:30]} 6. O-O {[%emt 0:00:18]} a6 {[%emt 0:00:56]} 7. a4 {[%emt 0:00:33] C54: Giuoco Piano: 4 c3 Nf6, main lines with 5 d4 and 5 d3.} Ba7 {[%emt 0:01:14]} 8. Re1 {[%emt 0:00:29]} h6 {[%emt 0:00:36]} 9. Nbd2 {[%emt 0:07:28] White has an edge.} O-O {[%emt 0:00:24]} 10. h3 {[%emt 0:02:43]} Ne7 {[%emt 0:00:13]} (10... Nh5 {is more complex.} 11. Nf1 Qf6 12. Be3 Bxe3 13. Nxe3 Nf4) 11. d4 {[%emt 0:05:13]} Nc6 {[%emt 0:00:34][%cal Re5d4]} 12. dxe5 {[%emt 0:06:39]} Nxe5 {[%emt 0:00:40]} 13. Nxe5 {[%emt 0:00:07]} dxe5 {[%emt 0:00:04]} 14. a5 {[%emt 0:00:27] [#]} Be6 $146 {[%emt 0:13:22]} ({Predecessor:} 14... Qe7 15. Qb3 Ne8 16. Nf1 Nd6 17. Be3 Nxc4 18. Qxc4 Be6 19. Qe2 Bxe3 20. Nxe3 Rfd8 {½-½ Libiszewski,F (2481)-Georgiadis,I (2473) Oberliga Baden 1819 2018 (6.1)}) 15. Bf1 {[%emt 0:14:48]} Qe7 {[%emt 0:20:55]} (15... g5 $5 {[%cal Rg5g4]}) 16. Qe2 {[%emt 0:03:28]} Rfd8 {[%emt 0:03:55]} 17. b4 {[%emt 0:08:27]} Bd7 {[%emt 0:06:24]} 18. Nf3 {[%emt 0:12:18]} c5 {[%emt 0:03:43]} 19. Qb2 {[%emt 0:01:13]} Bc6 {[%emt 0:17:40]} 20. Qb1 {[%emt 0:02:37]} cxb4 {[%emt 0:01:52]} 21. cxb4 {[%emt 0:00:07]} Bd4 {[%emt 0:05:18] [#] Hoping for ...Bxe4.} 22. Ra2 {[%emt 0:09:35]} Rac8 {[%emt 0:08:28] ...Bxe4 is the strong threat.} 23. Bd2 {[%emt 0:00:51]} Qe6 {[%emt 0:05:50] And now ...Nxe4 would win.} 24. Nxd4 {[%emt 0:04:37]} Rxd4 {[%emt 0:00:09]} 25. f3 {[%emt 0:00:46]} Bb5 {[%emt 0:00:35]} 26. Rc2 {[%emt 0:02:25]} Bxf1 {[%emt 0:05:16]} 27. Rxf1 {[%emt 0:01:29]} Rcd8 {[%emt 0:02:20]} 28. Bc3 {[%emt 0:02:40]} Rc4 {[%emt 0:00:31]} 29. Ba1 {[%emt 0:00:53]} Rxc2 {[%emt 0:03:58]} 30. Qxc2 {[%emt 0:00:25]} Ne8 {[%emt 0:00:09]} 31. b5 {[%emt 0:04:08]} axb5 {[%emt 0:01:30]} 32. Qc5 {[%emt 0:00:28][%csl LRb5,LRe5]} f6 {[%emt 0:01:57]} 33. Qxb5 {[%emt 0:00:08]} Nd6 {[%emt 0:01:25]} 34. Qb4 {[%emt 0:02:11]} Rc8 {[%emt 0:01:46][%cal Bd8c8,Bc8c6,Bc6d6][%mdl 32]} 35. Rd1 {[%emt 0:00:16][%cal Bf1d1,Bd1d5,Bd5b5][%mdl 32]} Rc6 {[%emt 0:01:50]} 36. Kh2 {[%emt 0:00:33]} Kh7 {[%emt 0:00:49]} (36... Qc4 $5 {[%cal Rc4b4]} 37. Qxc4+ Nxc4 $11) 37. Rd5 {[%emt 0:02:10]} Qd7 {[%emt 0:01:39]} 38. Bc3 {[%emt 0:01:59][%cal Ba1c3,Bc3e1,Be1b4,Bb4d6][%mdl 32]} Qc7 {[%emt 0:00:32]} 39. Be1 {[%emt 0:00:09]} Nc8 {[%emt 0:01:17]} 40. Qf8 {[%emt 0:00:00] White is more active.} (40. Qd2 $14 Rc1 41. Bh4) 40... Rd6 $1 $11 {[%emt 0:00:00] The position is equal.} 41. Rb5 {[%emt 0:14:25]} Ne7 {[%emt 0:10:57] [#] Strongly threatening ...Rd1.} 42. Bb4 {[%emt 0:01:05]} Qc1 {[%emt 0:05:01][%cal Od6d1] ...Rd1! would be deadly.} 43. Bxd6 {[%emt 0:03:56]} Qf4+ {[%emt 0:00:07]} 44. Kh1 {[%emt 0:00:02]} Qc1+ {[%emt 0:00:05]} 45. Kh2 {[%emt 0:00:03]} Qf4+ {[%emt 0:00:03]} 46. Kh1 {[%emt 0:00:04]} Qc1+ {[%emt 0:00:05] Weighted Error Value: White=0.07 (flawless) /Black=0.07 (flawless)} 1/2-1/2

[Event "WR Chess Masters 2023"]
[Site "Duesseldorf"]
[Date "2023.02.24"]
[Round "8.4"]
[White "So, Wesley"]
[Black "Keymer, Vincent"]
[Result "0-1"]
[ECO "C54"]
[WhiteElo "2766"]
[BlackElo "2690"]
[Annotator "TA"]
[PlyCount "100"]
[EventDate "2023.02.16"]
[EventCountry "GER"]
[SourceTitle "playchess.com"]
[Source "ChessBase"]
[SourceQuality "1"]
[TimeControl "40/7200:20/3600:900+30"]

{[%evp 11,100,20,24,31,32,8,28,8,16,19,27,25,25,19,37,37,34,21,40,26,21,12,30,0,6,-24,-8,-20,0,0,0,-72,-74,-108,-109,-110,-98,-148,-141,-134,-147,-195,-179,-258,-258,-256,-242,-681,-418,-385,-314,-327,-310,-262,-243,-227,-245,-232,-158,-153,-152,-146,-146,-150,-161,-167,-158,-147,-150,-143,-140,-134,-137,-400,-255,-295,-292,-259,-284,-239,-259,-234,-222,-411,-404,-359,-368,-704,-704,-704,-704]} 1. e4 {[%emt 0:00:14]} e5 {[%emt 0:00:06]} 2. Nf3 {[%emt 0:00:09]} Nc6 {[%emt 0:00:04]} 3. Bc4 {[%emt 0:01:15]} Nf6 {[%emt 0:00:05]} 4. d3 {[%emt 0:00:10]} Bc5 {[%emt 0:00:05]} 5. c3 {[%emt 0:00:04]} a6 {[%emt 0:00:04]} 6. O-O {[%emt 0:01:51]} Ba7 {[%emt 0:00:30]} 7. a4 {[%emt 0:01:21] is now more promising than 7.Bb3. C54: Giuoco Piano: 4 c3 Nf6, main lines with 5 d4 and 5 d3.} O-O {[%emt 0:00:33]} 8. h3 {[%emt 0:07:51]} d6 {[%emt 0:01:03][%cal Ob7b5]} 9. Re1 {[%emt 0:00:16] White has an edge.} h6 {[%emt 0:00:12]} 10. Nbd2 {[%emt 0:00:16][%cal Bb1d2,Bd2f1,Bf1g3,Bg3f5][%mdl 32]} (10. b4 {is interesting.} Nh5 11. Na3 Qf6 12. Ra2) 10... Be6 {[%emt 0:00:30]} (10... Nh5 {keeps more tension.} 11. Nf1 Qf6 12. Be3 Be6) 11. Bxe6 {[%emt 0:03:11]} fxe6 {[%emt 0:00:08]} 12. b4 {[%emt 0:00:03]} Ne7 {[%emt 0:00:05]} (12... Nh5 {is more complex.} 13. Ra2 Qe8 14. Nf1 Qg6) 13. Nf1 {[%emt 0:04:47]} Ng6 {[%emt 0:00:05]} 14. Ra2 {[%emt 0:03:44]} d5 {[%emt 0:00:10] White must now prevent ...dxe4.} 15. Ng3 {[%emt 0:01:57]} c6 {[%emt 0:00:36] [#]} 16. a5 $146 {[%emt 0:20:30]} ({Predecessor:} 16. d4 exd4 17. cxd4 dxe4 18. Nxe4 Nxe4 19. Rxe4 Rf6 20. Rae2 Qd5 21. Qc2 Raf8 22. Bd2 {½-½ Vodicka,M (2109)-Csiba,T (2159) EU-ch 2020 pr12 email}) 16... Rc8 {[%emt 0:33:14]} 17. c4 {[%emt 0:05:36]} Rc7 {[%emt 0:04:13]} 18. exd5 {[%emt 0:20:06]} exd5 {[%emt 0:02:06]} 19. c5 {[%emt 0:01:37]} (19. Nxe5 Nxe5 20. Rxe5 dxc4 $17) 19... Re7 {[%emt 0:06:05]} 20. Nf5 {[%emt 0:00:25]} Re6 {[%emt 0:00:24]} 21. N3d4 {[%emt 0:11:51]} (21. Nxh6+ $11 gxh6 22. Bxh6) 21... Ree8 $17 {[%emt 0:01:37]} 22. Nb3 {[%emt 0:00:07][%cal Of2f4]} Qd7 {[%emt 0:10:53]} 23. Nd6 {[%emt 0:00:55]} Re6 {[%emt 0:00:45]} 24. Rae2 {[%emt 0:04:32]} (24. Nf5 $142) 24... Ne8 $1 {[%emt 0:01:35]} 25. Nxe8 {[%emt 0:00:05]} Qxe8 {[%emt 0:02:00]} 26. g3 {[%emt 0:06:14]} (26. Re3 $17) 26... Bb8 {[%emt 0:03:27]} 27. Re3 {[%emt 0:00:59]} (27. Rf1 $142) 27... Qf7 $19 {[%emt 0:02:46]} 28. Rf1 {[%emt 0:00:51]} Rf6 {[%emt 0:02:43][%cal Rf6f2]} 29. Re2 {[%emt 0:00:15] [#]} (29. Nd2) 29... Nh4 $1 {[%emt 0:02:53][%mdl 576] Clearance} 30. Nd2 {[%emt 0:01:32][%cal Bb3d2,Bd2f1,Bf1h2,Bh2g4,Bg4e3][%mdl 32]} (30. gxh4 Rg6+) 30... Qg6 {[%emt 0:04:16] ...e4 is the strong threat.} 31. Re3 {[%emt 0:01:15]} Nf5 {[%emt 0:05:32]} 32. Rf3 {[%emt 0:00:22]} Re6 {[%emt 0:02:40]} 33. Re1 {[%emt 0:00:57]} Rfe8 {[%emt 0:01:32]} 34. Nf1 {[%emt 0:01:48]} e4 {[%emt 0:04:02]} (34... Nd4 35. Rfe3 $17) 35. dxe4 {[%emt 0:00:03]} dxe4 {[%emt 0:00:04]} ({Inferior is} 35... Rxe4 36. Bd2 $17) 36. Ra3 {[%emt 0:02:32]} Nh4 {[%emt 0:04:38] Black is more active.} 37. Nh2 {[%emt 0:03:04] [#] Prevents Nf3+} e3 $1 {[%emt 0:00:39][%mdl 512]} 38. Raxe3 {[%emt 0:02:16] [#]} Bxg3 $1 {[%emt 0:00:38][%mdl 576] Pin} 39. Ng4 {[%emt 0:02:26]} Rxe3 {[%emt 0:08:47]} ({Worse is} 39... Bxf2+ 40. Kxf2 Rf8+ 41. Ke2 $15 (41. Kg1 Nf3+ 42. Kh1 Nxe1 $17)) 40. Rxe3 {[%emt 0:00:00]} Rxe3 $40 {[%emt 0:00:00][%mdl 128] Black has strong attack.} 41. Nxe3 {[%emt 0:13:13] [#]} Bf4+ $1 {[%emt 0:02:38]} 42. Qg4 $2 {[%emt 0:00:05][%mdl 8192] Now White is beyond hope.} (42. Kf1 $17 Bg5 43. Qd4) 42... Nf3+ {[%emt 0:03:06]} 43. Kg2 {[%emt 0:00:07][%cal Og2f3] Threatens to win with Kxf3!} Qxg4+ {[%emt 0:03:15]} 44. hxg4 {[%emt 0:00:07][%mdl 4096] Endgame KBN-KBN} Ne1+ {[%emt 0:00:16]} 45. Kf1 {[%emt 0:00:03]} Nd3 {[%emt 0:00:05][%csl LRb4,LRc1]} 46. Bd2 {[%emt 0:00:13] [#]} Ne5 $1 {[%emt 0:04:56]} 47. Ke2 {[%emt 0:18:31]} (47. Nc4 {is a better defense.} Bxd2 48. Nxd2) 47... Bxe3 {[%emt 0:01:22]} 48. Kxe3 {[%emt 0:00:02]} Nxg4+ {[%emt 0:01:16]} 49. Kf4 $2 {[%emt 0:00:02]} (49. Kf3 Nf6 50. Kf4) 49... Nxf2 {[%emt 0:01:57]} 50. Ke5 {[%emt 0:00:03]} h5 {[%emt 0:01:16] Excellently played by Keymer!   Weighted Error Value: White=0.40/Black=0.18 (very precise)} 0-1